[Event "35th Roquetas Festival 2024"]
[Site "Roquetas de Mar"]
[Date "2024.01.04"]
[Round "5.26"]
[White "Hompanera Lopez, Enrique"]
[Black "Camacho Collados, Marcos"]
[Result "0-1"]
[ECO "C70"]
[WhiteElo "2032"]
[BlackElo "2466"]
[Annotator "TA"]
[PlyCount "60"]
[EventDate "2024.01.02"]
[EventType "swiss"]
[EventCountry "ESP"]
[SourceTitle "playchess.com"]
[Source "ChessBase"]
[SourceQuality "1"]
[TimeControl "5400+30"]

{[%evp 14,60,28,0,38,36,49,41,47,18,16,8,82,-1,-3,-40,-17,-28,-22,-47,-58,-55,-45,-156,-147,-257,-250,-250,-254,-246,-252,-246,-237,-327,-322,-362,-368,-376,-375,-378,-371,-460,-456,-451,-435,-482,-488,-479,-483]} 1. e4 {[%emt 0:01:16]} e5 {[%emt 0:00:24]} 2. Nf3 {[%emt 0:00:24]} Nc6 {[%emt 0:00:08]} 3. Bb5 {[%emt 0:00:25]} a6 {[%emt 0:00:49]} 4. Ba4 {[%emt 0:00:19]} Nge7 {[%emt 0:05:13]} 5. O-O {[%emt 0:02:57]} g6 {[%emt 0:00:21]} 6. d4 {[%emt 0:03:03]} exd4 {[%emt 0:00:55]} 7. Nxd4 {[%emt 0:01:05]} Bg7 {[%emt 0:01:01]} 8. c3 {[%emt 0:02:39]} b5 {[%emt 0:03:55] C60: Ruy Lopez: Unusual Black 3rd moves and 3...g6.} 9. Bc2 {[%emt 0:04:01]} Bb7 {[%emt 0:02:02]} 10. Bg5 {[%emt 0:02:23] [#]} h6 $146 {[%emt 0:00:49] White is slightly better.} ({Predecessor:} 10... O-O 11. Nxc6 Bxc6 12. Nd2 d6 13. Nf3 Qd7 14. Re1 Rfe8 15. Qd2 Rad8 16. Bb3 Bb7 17. Qf4 Rf8 18. e5 Bxf3 19. exd6 Qxd6 20. Qxd6 {1-0 Albesa,N (1305)-Linart,L (854) OP-2011-0-01917}) 11. Bh4 {[%emt 0:01:30]} Nxd4 {[%emt 0:04:48]} 12. cxd4 {[%emt 0:00:09]} c5 {[%emt 0:00:12]} 13. e5 {[%emt 0:07:02]} ({White should play} 13. dxc5 $16 g5 14. Bg3) 13... cxd4 $11 {[%emt 0:09:00]} 14. Qxd4 {[%emt 0:06:25]} Nc6 {[%emt 0:13:20][%csl LRd4,LRe5]} 15. Qe4 {[%emt 0:08:43]} Qc7 $36 {[%emt 0:00:49][%mdl 2048] Black is more active.} 16. Bf6 {[%emt 0:03:02]} O-O {[%emt 0:01:56]} (16... Nxe5 17. Qxe5+ Qxe5 18. Bxe5 Bxe5 19. Re1 $16) 17. Bxg7 {[%emt 0:08:16]} Kxg7 {[%emt 0:00:06]} 18. f4 {[%emt 0:02:36]} (18. Nc3 $15) 18... Rfe8 $17 {[%emt 0:03:32]} 19. Nc3 {[%emt 0:07:55]} (19. Rf2 $17) 19... Qb6+ $19 {[%emt 0:01:21]} 20. Kh1 {[%emt 0:01:00] [#]} Nxe5 $1 {[%emt 0:00:26][%mdl 576] Discovered Attack} 21. Nd5 {[%emt 0:03:02] [#]} Qc5 $1 {[%emt 0:05:46]} 22. fxe5 {[%emt 0:03:32][%cal Of1f7] Rxf7+! would kill now.} Bxd5 {[%emt 0:02:38]} (22... Qxd5 23. Qxd5 Bxd5 24. Rfd1) 23. Qd3 {[%emt 0:06:38]} Bc4 {[%emt 0:02:38] Inhibits Bb3. Active counter play!} (23... Rxe5 $2 24. Bb3 $19) 24. Qf3 {[%emt 0:05:02]} Bxf1 {[%emt 0:11:11]} 25. Rxf1 {[%emt 0:01:00]} Qe7 {[%emt 0:00:52]} (25... Qxc2 26. Qxf7+ Kh8 27. Qf6+ Kh7 28. Qf7+ Kh8 29. Qf6+ Kh7 30. Qf7+ Kh8 $11) 26. Bb3 {[%emt 0:01:04]} Rf8 {[%emt 0:00:09]} (26... Qxe5 $2 {too greedy.} 27. Qxf7+ Kh8 28. Qxg6 $19) 27. Qd5 {[%emt 0:02:00]} Rae8 {[%emt 0:03:53] Black is clearly winning.} 28. h3 {[%emt 0:00:42]} Qe6 {[%emt 0:01:16]} ({Stronger than} 28... Qxe5 29. Rxf7+ Rxf7 30. Qxf7+ Kh8 31. Qxg6 $11) 29. Qb7 {[%emt 0:01:42]} Qc6 {[%emt 0:04:29]} (29... Qxe5 $2 {is the wrong capture.} 30. Qxd7 Re7 31. Qd2 $19) 30. Qa7 {[%emt 0:00:37]} Rxe5 {[%emt 0:00:39] Weighted Error Value: White=0.41/Black=0.06 (flawless)} 0-1

[Event "35th Roquetas Festival 2024"]
[Site "Roquetas de Mar"]
[Date "2024.01.05"]
[Round "6.1"]
[White "Suarez Uriel, Adrian"]
[Black "Grigoryan, Karen H."]
[Result "1-0"]
[ECO "B75"]
[WhiteElo "2365"]
[BlackElo "2643"]
[Annotator "TA"]
[PlyCount "103"]
[EventDate "2024.01.02"]
[EventType "swiss"]
[EventCountry "ESP"]
[SourceTitle "playchess.com"]
[Source "ChessBase"]
[SourceQuality "1"]
[TimeControl "5400+30"]

{[%evp 14,103,53,46,54,33,26,6,41,4,28,16,39,-10,0,-30,-32,-42,-16,-31,-17,-71,-44,-96,-98,-113,-108,-119,-39,-27,0,0,59,53,74,87,168,170,220,239,358,350,317,316,568,276,643,635,634,616,576,558,534,538,634,632,620,613,917,928,1167,1167,1160,1160,1010,922,1160,1160,1160,1160,1145,535,1138,1131,1226,1158,1151,1074,1138,1011,1402,1362,29977,29972,29969,29970,29979,29980,29980,29981,29982,29982]} 1. e4 {[%emt 0:00:02]} c5 {[%emt 0:02:23]} 2. Nf3 {[%emt 0:00:02]} d6 {[%emt 0:00:11]} 3. d4 {[%emt 0:00:06]} cxd4 {[%emt 0:00:05]} 4. Nxd4 {[%emt 0:00:03]} Nf6 {[%emt 0:00:12]} 5. Nc3 {[%emt 0:00:04]} g6 {[%emt 0:00:31]} 6. Be3 {[%emt 0:00:30]} Bg7 {[%emt 0:00:46]} 7. f3 {[%emt 0:00:04]} a6 {[%emt 0:00:05]} 8. Qd2 {[%emt 0:00:50]} h5 {[%emt 0:00:08] B75: Sicilian Dragon: Yugoslav Attack, Miscellaneous.} 9. O-O-O {[%emt 0:02:37] 9.Be2 is more fashionable.} b5 {[%emt 0:00:12] Inhibits Bc4.} 10. Kb1 {[%emt 0:00:12]} Nbd7 {[%emt 0:01:53] The position is equal.} 11. Bd3 {[%emt 0:19:09]} (11. Nc6 $5 Qc7 $8 12. Nb4 $11) 11... Bb7 {[%emt 0:00:28]} 12. h3 {[%emt 0:00:04]} Rc8 {[%emt 0:02:39]} 13. g4 {[%emt 0:00:58]} (13. a3 $14 {should be considered.}) 13... Ne5 $11 {[%emt 0:00:59]} 14. g5 {[%emt 0:08:55]} Nfd7 {[%emt 0:00:21]} 15. f4 {[%emt 0:00:16]} Nc4 {[%emt 0:05:48]} 16. Bxc4 {[%emt 0:01:13]} Rxc4 {[%emt 0:00:18]} 17. Rhf1 {[%emt 0:00:56] [#]} (17. b3 $11 {keeps the balance.} Rxc3 {[%mdl 64] Remove Defender} 18. Qxc3) 17... Nc5 $146 {[%emt 0:05:48]} ({Predecessor:} 17... b4 18. Nd5 e6 19. b3 Rc8 20. Nxb4 Bxe4 21. Rfe1 a5 22. Nd3 Nc5 23. Nxc5 dxc5 {0-1 Liu,A (1423)-Vu,L (1813) PNWCC Online blitz JP 2nd 2020 (2)}) 18. b3 {[%emt 0:14:53] [#]} (18. f5 $15) 18... Rxc3 $1 {[%emt 0:11:23]} 19. Qxc3 {[%emt 0:00:26][%cal Oe4e5]} Nxe4 {[%emt 0:00:14]} 20. Qe1 {[%emt 0:00:52] [#]} Qc8 {[%emt 0:02:00]} (20... Qc7 $1 $17 {Strongly threatening ...Nc3+.} 21. Ne2 Bc3) 21. Rd3 $15 {[%emt 0:02:44] Against Nc3+} Qxh3 {[%emt 0:10:17]} 22. Nxb5 Qd7 {[%emt 0:05:14]} (22... axb5 $11 23. Bd4 {[%mdl 64] Discovered Attack} Qf5 24. Bxg7 Rh7) 23. Bd4 $1 $14 {[%emt 0:06:38]} Bxd4 {[%emt 0:02:55]} 24. Nxd4 {[%emt 0:00:19] White stays focused until the end.} h4 {[%emt 0:01:34]} (24... e6 $16) 25. Re3 $18 {[%emt 0:01:54]} Ng3 {[%emt 0:00:52]} (25... Nc5 {might work better.}) 26. Rf2 {[%emt 0:00:11]} Kf8 {[%emt 0:01:29]} (26... Rh5 $142 27. Rh2 e6) 27. Rh2 {[%emt 0:08:12][%cal Oe3g3] And now Rxg3! would win.} Rh5 {[%emt 0:01:41] [#]} 28. f5 $1 {[%emt 0:01:15][%cal Bf4f5,Bf5g6][%mdl 32]} Rxg5 {[%emt 0:20:31]} (28... Nxf5 29. Nxf5 {[%mdl 64] Remove Defender} Qxf5) 29. Rxh4 {[%emt 0:00:11]} (29. fxg6 $142 e5 30. Rxh4) 29... Nh5 $2 {[%emt 0:00:29]} (29... Nxf5 30. Nxf5 Rxf5 31. Rxe7 (31. Rh8+ Kg7 $18) 31... Rf1 32. Rxd7 (32. Rh8+ Kg7 $18) 32... Rxe1+ 33. Kb2 Be4) 30. fxg6 {[%emt 0:01:39]} e5 {[%emt 0:00:11]} 31. Nf3 {[%emt 0:05:48]} Rf5 {[%emt 0:00:09] [#]} 32. Nxe5 {[%emt 0:00:45]} dxe5 {[%emt 0:00:48]} 33. Rxe5 Rxe5 {[%emt 0:04:28]} 34. Qxe5 {[%emt 0:01:54]} fxg6 {[%emt 0:00:14]} 35. Qh8+ {[%emt 0:01:48]} Kf7 {[%emt 0:00:59]} 36. Qh7+ {[%emt 0:00:40][%mdl 64] Deflection} Ke6 {[%emt 0:00:40]} 37. Qxg6+ Nf6 {[%emt 0:00:06]} 38. Rf4 {[%emt 0:00:17]} Qe7 {[%emt 0:00:27]} 39. Rf1 {[%emt 0:00:57] Intending Re1+ and mate.} Be4 {[%emt 0:06:44] [#]} 40. Rxf6+ $1 {[%emt 0:00:06][%mdl 576] Remove Defender} Qxf6 {[%emt 0:00:05]} 41. Qxe4+ {[%emt 0:00:02][%mdl 4096] Endgame KQ-KQ} Kd7 {[%emt 0:00:11]} 42. Qc4 {[%emt 0:00:11]} (42. a4 $142 Kc8 43. Ka2) 42... Qh6 {[%emt 0:00:44]} 43. a4 {[%emt 0:00:10]} Qh1+ {[%emt 0:00:07]} 44. Kb2 {[%emt 0:00:10]} Qh8+ {[%emt 0:00:07]} 45. Ka2 {[%emt 0:00:38]} Qf6 {[%emt 0:00:10]} 46. a5 {[%emt 0:00:44]} Qh6 {[%emt 0:00:27]} 47. Qd4+ {[%emt 0:00:15]} Kc7 {[%emt 0:00:08]} 48. Qa7+ {White mates.} Kc8 {[%emt 0:00:06]} 49. Qb6 {[%emt 0:00:27]} Qxb6 {[%emt 0:00:04]} 50. axb6 {[%emt 0:00:02]} Kb7 {[%emt 0:00:06]} 51. Ka3 {[%emt 0:00:08]} Kxb6 {[%emt 0:00:12]} 52. Kb4 {[%emt 0:00:15] An entertaining game by Suarez Uriel.   Weighted Error Value: White=0.35/Black=0.55} 1-0

[Event "35th Roquetas Festival 2024"]
[Site "Roquetas de Mar"]
[Date "2024.01.05"]
[Round "6.2"]
[White "Sosa, Tomas"]
[Black "Bernadskiy, Vitaliy"]
[Result "1-0"]
[ECO "B11"]
[WhiteElo "2554"]
[BlackElo "2566"]
[Annotator "ChessBase"]
[PlyCount "87"]
[EventDate "2024.01.02"]
[EventType "swiss"]
[EventCountry "ESP"]
[SourceTitle "playchess.com"]
[Source "ChessBase"]
[SourceQuality "1"]
[TimeControl "5400+30"]

1. e4 c6 2. Nf3 d5 3. Nc3 Bg4 4. h3 Bxf3 5. Qxf3 e6 6. Be2 d4 7. Nb1 Ne7 8. Qb3 Nd7 9. Qg3 Ng6 10. d3 e5 11. O-O Bd6 12. c3 dxc3 13. bxc3 Nc5 14. Rd1 O-O 15. Qg4 Qa5 16. Ba3 Rad8 17. Bb4 Qc7 18. Bxc5 Bxc5 19. Nd2 Nf4 20. Nb3 Ba3 21. g3 Rd6 22. Kh2 Nxe2 23. Qxe2 Rfd8 24. d4 exd4 25. cxd4 a5 26. Rab1 Re6 27. Qe3 Bb4 28. Rbc1 Ree8 29. Rc2 Qe7 30. Re2 h6 31. a3 Bxa3 32. Nxa5 Bb4 33. Nc4 Qe6 34. Nb2 Bf8 35. Qc3 Ra8 36. Nd3 Ra3 37. Qc1 Rea8 38. Nf4 Qb3 39. e5 Ra2 40. Rd3 Qb5 41. Qe3 Rxe2 42. Qxe2 Qc4 43. e6 Bd6 44. Ra3 1-0

[Event "35th Roquetas Festival 2024"]
[Site "Roquetas de Mar"]
[Date "2024.01.05"]
[Round "6.3"]
[White "Garcia Fernandez, Victor"]
[Black "Stremavicius, Titas"]
[Result "0-1"]
[ECO "D31"]
[WhiteElo "2366"]
[BlackElo "2543"]
[Annotator "TA"]
[PlyCount "96"]
[EventDate "2024.01.02"]
[EventType "swiss"]
[EventCountry "ESP"]
[SourceTitle "playchess.com"]
[Source "ChessBase"]
[SourceQuality "1"]
[TimeControl "5400+30"]

{[%evp 15,96,-1,0,-20,26,23,37,27,27,27,25,29,22,22,22,20,26,21,21,7,20,9,8,0,24,24,20,20,33,21,25,0,0,0,0,0,0,0,0,0,0,0,0,0,0,0,0,0,0,-8,-8,-8,0,-13,-8,-8,-8,-22,0,-81,-17,-29968,-29970,-29970,-29957,-29969,-29968,-29973,-29974,-29973,-29975,-29974,-32,-29976,-29976,-29980,-29981,-29983,-29984,-29985,-29986,-29987,-29988]} 1. d4 {[%emt 0:00:02]} d5 {[%emt 0:01:10]} 2. c4 {[%emt 0:00:13]} e6 {[%emt 0:00:19]} 3. Nc3 {[%emt 0:01:30]} Be7 {[%emt 0:00:10]} 4. cxd5 {[%emt 0:00:18]} exd5 {[%emt 0:00:07]} 5. Bf4 {[%emt 0:00:16]} c6 {[%emt 0:00:06]} 6. e3 {[%emt 0:00:08]} Bf5 {[%emt 0:00:09]} 7. Nge2 {[%emt 0:02:34][%cal Bg1e2,Be2g3,Bg3h5,Bh5f4][%mdl 32]} Nd7 {[%emt 0:00:12]} 8. Ng3 {[%emt 0:00:29]} Bg6 {[%emt 0:00:16]} 9. h4 {[%emt 0:01:04] D31: Queen's Gambit Declined: Semi-Slav without ...Nf6 (+ Marshall Gambit and Noteboom) and Exchange Variation lines without ...Nf6.} h5 {[%emt 0:03:02]} (9... Bxh4 {is superior.} 10. Nh5 Bxh5 11. Qxh5 Be7) 10. Bd3 $11 {[%emt 0:01:28]} Nf8 {[%emt 0:05:07]} 11. Bxg6 {[%emt 0:15:22] White is slightly better.} Nxg6 {[%emt 0:00:28]} 12. Nxh5 {[%emt 0:00:31]} Nxf4 {[%emt 0:02:15]} 13. Nxf4 {[%emt 0:00:52]} Rxh4 {[%emt 0:00:35]} 14. Rxh4 {[%emt 0:00:51]} Bxh4 {[%emt 0:00:10] [#]} 15. Qg4 $146 {[%emt 0:04:28]} ({Predecessor:} 15. Qh5 Bf6 16. Ne6 Qc8 17. Nc5 g6 18. Qh2 b6 19. Nd3 Qf5 20. O-O-O Ne7 21. Qh7 {1-0 Oparin,G (2652)-Muradli,M (2449) PNWCC WOW op 2020 (1)}) 15... Bf6 {[%emt 0:03:56]} 16. Nh5 {[%emt 0:06:31]} g6 {[%emt 0:00:19]} 17. Nxf6+ {[%emt 0:00:09]} Qxf6 {[%emt 0:01:54]} 18. Qg3 {[%emt 0:02:10]} O-O-O {[%emt 0:08:58]} 19. O-O-O {[%emt 0:06:34]} (19. Rc1 {feels hotter.} Qe7 20. Ke2 Qb4 21. b3) 19... Qd6 {[%emt 0:02:01]} 20. Qxd6 {[%emt 0:01:01]} Rxd6 {[%emt 0:00:03][%mdl 4096] Endgame KRN-KRN} 21. Rh1 {[%emt 0:00:14]} Nf6 {[%emt 0:01:32]} 22. Rh8+ {[%emt 0:01:29]} Rd8 {[%emt 0:00:06]} 23. Rxd8+ {[%emt 0:00:27]} Kxd8 {[%emt 0:00:04] KN-KN} 24. f3 {[%emt 0:00:16]} Ke7 {[%emt 0:01:18]} 25. Kd2 {[%emt 0:00:23]} Nh5 {[%emt 0:09:41]} 26. Ke2 {[%emt 0:00:24]} f5 {[%emt 0:01:06]} 27. Kf2 {[%emt 0:04:20]} Ng7 {[%emt 0:00:53]} 28. Ne2 {[%emt 0:00:48]} Ne6 {[%emt 0:00:16]} 29. Nc1 {[%emt 0:00:31]} b6 {[%emt 0:04:05][%cal Bb7b6,Bb6c5,Bc5c4][%mdl 32]} 30. Nd3 {[%emt 0:00:16]} Kd6 {[%emt 0:06:05]} 31. Ke2 {[%emt 0:02:32]} c5 {[%emt 0:02:05]} 32. dxc5+ {[%emt 0:02:31]} bxc5 {[%emt 0:00:07]} 33. g3 {[%emt 0:08:32]} c4 {[%emt 0:05:54]} 34. Ne1 {[%emt 0:02:08]} Nc5 {[%emt 0:03:05]} 35. Kd2 {[%emt 0:01:05]} g5 {[%emt 0:00:40]} 36. g4 {[%emt 0:11:11]} f4 {[%emt 0:04:15]} 37. Nc2 {[%emt 0:00:44]} (37. exf4 $11 gxf4 38. Kc3) 37... Ne6 {[%emt 0:02:40]} ({Better is} 37... fxe3+ $17 38. Kxe3 Ne6) 38. Nd4 $2 {[%emt 0:08:07][%mdl 8192] [#]} (38. exf4 $11 Nxf4 39. Nd4) 38... fxe3+ $1 {[%emt 0:15:38]} 39. Kxe3 {[%emt 0:00:05] [#]} Nxd4 $1 {[%emt 0:00:08]} 40. Kxd4 {[%emt 0:00:03] KP-KP} a6 {[%emt 0:07:27]} 41. a3 {[%emt 0:03:25]} Ke6 {[%emt 0:01:14]} 42. Kc5 {[%emt 0:04:25]} Ke5 {[%emt 0:00:05]} 43. a4 {[%emt 0:00:05]} Ke6 $2 {[%emt 0:00:04]} (43... a5 {mates} 44. Kb5 Kd6 45. Kxa5 Kc5 46. f4 gxf4 47. g5 Kd6 48. g6 Ke6 49. Kb6 f3 50. g7 Kf7 51. Kc6 f2 52. Kd6 d4 53. Kd5 d3 54. Ke4 f1=Q 55. Ke3 Kxg7 56. Kd4 d2 57. Kc5 d1=Q 58. b3 cxb3 59. a5 Qc2+ 60. Kd6 Qf6+ 61. Kd7 Qcc6#) 44. Kd4 $2 {[%emt 0:00:50][%mdl 8192]} (44. Kb4 $15) 44... Kd6 {[%emt 0:00:06] Black mates.} 45. a5 {[%emt 0:04:17]} Ke6 {[%emt 0:00:15]} 46. Kc5 {[%emt 0:01:18]} Ke5 {[%emt 0:00:07]} 47. Kb6 {[%emt 0:01:28]} d4 {[%emt 0:00:06][%cal Bd5d4,Bd4d3][%mdl 32]} 48. Kxa6 {[%emt 0:00:03]} d3 {[%emt 0:00:19] Weighted Error Value: White=0.37/Black=0.22 (precise)} 0-1

[Event "35th Roquetas Festival 2024"]
[Site "Roquetas de Mar"]
[Date "2024.01.05"]
[Round "6.4"]
[White "Fiorito, Francisco"]
[Black "Korneev, Oleg"]
[Result "1/2-1/2"]
[ECO "A06"]
[WhiteElo "2370"]
[BlackElo "2474"]
[Annotator "TA"]
[PlyCount "64"]
[EventDate "2024.01.02"]
[EventType "swiss"]
[EventCountry "ESP"]
[SourceTitle "playchess.com"]
[Source "ChessBase"]
[SourceQuality "1"]
[TimeControl "5400+30"]

{[%evp 17,64,-6,0,0,0,0,10,0,8,5,5,0,5,6,17,20,15,10,29,27,29,29,16,22,29,21,42,6,30,30,30,30,30,30,30,30,33,0,0,0,0,0,0,0,0,0,0,0,0]} 1. Nf3 {[%emt 0:00:04]} d5 {[%emt 0:01:11]} 2. g3 {[%emt 0:00:08]} Bg4 {[%emt 0:00:45]} 3. Bg2 {[%emt 0:02:00]} e6 {[%emt 0:00:22]} 4. O-O {[%emt 0:01:37]} Nf6 {[%emt 0:00:17]} 5. d3 {[%emt 0:01:58]} Be7 {[%emt 0:00:20]} 6. c4 {[%emt 0:02:38]} c6 {[%emt 0:00:07]} 7. cxd5 {[%emt 0:00:42]} Bxf3 {[%emt 0:00:04]} 8. Bxf3 {[%emt 0:00:15]} cxd5 {[%emt 0:00:02]} 9. Nc3 {[%emt 0:11:22]} Nc6 {[%emt 0:00:13]} 10. d4 {[%emt 0:16:02] A11: English Opening: 1...c6.} O-O {[%emt 0:00:13]} 11. e3 {[%emt 0:07:11] [#]} a6 $146 {[%emt 0:16:45]} ({Predecessor:} 11... Rc8 12. Bd2 Nd7 13. Qe2 Nb6 14. Rfd1 Qd7 15. Be1 Rfd8 16. Rac1 a6 17. Bg2 Rc7 18. h4 h6 19. Qc2 {½-½ Cordova,E (2655)-Matlakov,M (2701) Moscow Aeroflot op-A 16th 2017 (4)}) 12. Bd2 {[%emt 0:02:38]} Qb6 {[%emt 0:07:01]} 13. Na4 {[%emt 0:01:57]} Qa7 {[%emt 0:02:27]} 14. Rc1 {[%emt 0:01:58]} Nd7 {[%emt 0:02:20] [#]} 15. b4 $1 {[%emt 0:10:18]} Nb6 {[%emt 0:09:12]} (15... Bxb4 $2 16. Rxc6 bxc6 17. Bxb4 $18) (15... Rfc8 16. a3) 16. Nxb6 {[%emt 0:08:25]} Qxb6 {[%emt 0:00:11]} 17. Qb3 {[%emt 0:00:13]} Rac8 {[%emt 0:23:21]} 18. Be2 {[%emt 0:01:57]} Na7 {[%emt 0:04:06]} 19. a4 {[%emt 0:05:19][%cal Ba2a4,Ba4a5][%mdl 32]} Rxc1 {[%emt 0:00:29]} 20. Rxc1 {[%emt 0:00:04]} Rc8 {[%emt 0:00:07]} 21. Rb1 {[%emt 0:02:54]} g6 {[%emt 0:06:14]} 22. a5 {[%emt 0:02:37]} Qc6 {[%emt 0:02:30]} 23. b5 {[%emt 0:03:20]} Nxb5 {[%emt 0:00:16]} 24. Bxb5 {[%emt 0:00:07]} Qxb5 {[%emt 0:00:41]} 25. Qxb5 {[%emt 0:00:02]} axb5 {[%emt 0:00:05]} 26. Rxb5 $11 {[%emt 0:00:01][%mdl 4096] Endgame KRB-KRB} Rc7 {[%emt 0:00:17]} 27. Bb4 {[%emt 0:00:44]} Rc1+ {[%emt 0:01:25] The position is equal.} 28. Kg2 {[%emt 0:00:01]} Rb1 {[%emt 0:02:40]} 29. Rxb7 {[%emt 0:00:02] [#] Rb8+ is the strong threat.} Bxb4 {[%emt 0:00:05]} 30. a6 {[%emt 0:00:05] Threatens to win with a7.} Kg7 {[%emt 0:00:18]} 31. a7 {[%emt 0:00:02]} Ra1 $1 {[%emt 0:00:04]} 32. Rxb4 {[%emt 0:00:05] Strongly threatening Rb7.} Rxa7 {[%emt 0:00:03] Weighted Error Value: White=0.04 (flawless) /Black=0.05 (flawless)} 1/2-1/2

[Event "35th Roquetas Festival 2024"]
[Site "Roquetas de Mar"]
[Date "2024.01.05"]
[Round "6.5"]
[White "Macias Pino, Diego"]
[Black "Stremavicius, Pijus"]
[Result "1-0"]
[ECO "B40"]
[WhiteElo "2456"]
[BlackElo "2393"]
[Annotator "RC"]
[PlyCount "119"]
[EventDate "2024.01.02"]
[EventType "swiss"]
[EventCountry "ESP"]
[SourceTitle "playchess.com"]
[Source "ChessBase"]
[SourceQuality "1"]
[TimeControl "5400+30"]

1. e4 {[%emt 0:00:03]} c5 {[%emt 0:01:36]} 2. Nf3 {[%emt 0:00:10]} e6 {[%emt 0:00:02]} 3. d4 {[%emt 0:00:58]} cxd4 {[%emt 0:00:07]} 4. Nxd4 {[%emt 0:00:03]} Nf6 {[%emt 0:00:05]} 5. Nc3 {[%emt 0:00:04]} Nc6 {[%emt 0:00:03]} 6. Nxc6 {[%emt 0:01:31]} bxc6 {[%emt 0:00:05]} 7. e5 {[%emt 0:00:03]} Nd5 {[%emt 0:00:04]} 8. Ne4 {[%emt 0:00:04]} Qc7 {[%emt 0:01:12]} 9. f4 {[%emt 0:00:04]} Rb8 {[%emt 0:00:22]} 10. c4 {[%emt 0:01:43]} Bb4+ {[%emt 0:00:05]} 11. Ke2 {[%emt 0:01:37]} O-O {[%emt 0:00:10]} 12. cxd5 {[%emt 0:05:55]} cxd5 {[%emt 0:00:05]} 13. Ng5 {[%emt 0:02:35]} d6 {[%emt 0:00:15]} 14. Qd3 {[%emt 0:03:00]} g6 {[%emt 0:00:21]} 15. Nf3 {[%emt 0:10:56]} Rb6 {[%emt 0:23:27]} 16. Kd1 {[%emt 0:10:14]} Ba6 {[%emt 0:07:21]} 17. Qc2 {[%emt 0:05:08]} Rc6 {[%emt 0:06:21]} 18. Qa4 {[%emt 0:05:49]} Bxf1 {[%emt 0:09:02]} 19. Rxf1 {[%emt 0:00:18]} Rc4 {[%emt 0:00:22]} 20. Qb3 {[%emt 0:03:52]} Rc8 {[%emt 0:02:07]} 21. Be3 {[%emt 0:04:26]} a5 {[%emt 0:13:47]} 22. Qd3 {[%emt 0:06:07]} d4 {[%emt 0:03:15]} 23. exd6 {[%emt 0:04:35]} Qxd6 {[%emt 0:00:54]} 24. Nxd4 {[%emt 0:07:46]} e5 {[%emt 0:03:44]} 25. fxe5 {[%emt 0:02:40]} Qxe5 {[%emt 0:00:04]} 26. Rf4 {[%emt 0:02:05]} Qd5 {[%emt 0:05:12]} 27. Qe4 {[%emt 0:04:32]} Qh5+ {[%emt 0:01:52]} 28. Qf3 {[%emt 0:00:22]} Qxh2 {[%emt 0:02:50]} 29. Ke2 {[%emt 0:04:04]} Re8 {[%emt 0:07:59]} 30. Kd3 {[%emt 0:01:39]} Rc7 {[%emt 0:01:19]} 31. Qh3 {[%emt 0:02:10]} Qxh3 {[%emt 0:00:57]} 32. gxh3 {[%emt 0:00:01]} f5 {[%emt 0:00:01]} 33. Nb5 {[%emt 0:01:49]} Rce7 {[%emt 0:03:05]} 34. Bd4 {[%emt 0:00:49]} Re2 {[%emt 0:00:22]} 35. Rf2 {[%emt 0:00:49]} R2e4 {[%emt 0:00:44]} 36. Rc1 {[%emt 0:02:36]} Kf7 {[%emt 0:00:19]} 37. Rc7+ {[%emt 0:01:08]} R8e7 {[%emt 0:00:04]} 38. Rc6 {[%emt 0:02:14]} Rd7 {[%emt 0:01:33]} 39. Re2 {[%emt 0:00:44]} Rde7 {[%emt 0:01:21]} 40. Rxe4 {[%emt 0:00:19]} Rxe4 {[%emt 0:00:06]} 41. Rc7+ {[%emt 0:00:38]} Re7 {[%emt 0:00:27]} 42. Rc8 {[%emt 0:01:32]} g5 {[%emt 0:00:20]} 43. Rh8 {[%emt 0:01:52]} Kg6 {[%emt 0:00:24]} 44. Rg8+ {[%emt 0:01:03]} Kh5 {[%emt 0:00:04]} 45. a3 {[%emt 0:01:05]} Be1 {[%emt 0:02:00]} 46. Bf6 {[%emt 0:00:43]} Rd7+ {[%emt 0:00:08]} 47. Nd4 {[%emt 0:00:01]} Bh4 {[%emt 0:00:43]} 48. Ke2 {[%emt 0:00:35]} Rf7 {[%emt 0:02:01]} 49. Bd8 {[%emt 0:00:13]} g4 {[%emt 0:01:15]} 50. Nxf5 {[%emt 0:00:32]} gxh3 {[%emt 0:00:04]} 51. Bxh4 {[%emt 0:00:59]} Rxf5 {[%emt 0:00:05]} 52. Bg3 {[%emt 0:00:22]} Rb5 {[%emt 0:00:11]} 53. Rb8 {[%emt 0:00:08]} Rg5 {[%emt 0:00:46]} 54. Kf2 {[%emt 0:00:47]} Rf5+ {[%emt 0:00:13]} 55. Kg1 {[%emt 0:00:06]} Kg4 {[%emt 0:00:13]} 56. Kh2 {[%emt 0:00:10]} Rd5 {[%emt 0:00:41]} 57. Rg8+ {[%emt 0:00:10]} Kf3 {[%emt 0:00:01]} 58. Be1 {[%emt 0:00:32]} a4 {[%emt 0:01:15]} 59. Rg3+ {[%emt 0:00:13]} Ke2 {[%emt 0:00:08]} 60. Bc3 {[%emt 0:00:02]} 1-0

[Event "35th Roquetas Festival 2024"]
[Site "Roquetas de Mar"]
[Date "2024.01.05"]
[Round "6.6"]
[White "Espinosa Aranda, Angel"]
[Black "Habans Aguerrea, Javier"]
[Result "1/2-1/2"]
[ECO "B15"]
[WhiteElo "2431"]
[BlackElo "2368"]
[Annotator "RC"]
[PlyCount "58"]
[EventDate "2024.01.02"]
[EventType "swiss"]
[EventCountry "ESP"]
[SourceTitle "playchess.com"]
[Source "ChessBase"]
[SourceQuality "1"]
[TimeControl "5400+30"]

1. e4 {[%emt 0:00:05]} c6 {[%emt 0:00:09]} 2. Nc3 {[%emt 0:00:18]} d5 {[%emt 0:00:09]} 3. d4 {[%emt 0:00:31]} dxe4 {[%emt 0:00:08]} 4. Nxe4 {[%emt 0:00:09]} Nf6 {[%emt 0:00:07]} 5. Nxf6+ {[%emt 0:00:48]} exf6 {[%emt 0:00:08]} 6. c3 {[%emt 0:00:23]} Bd6 {[%emt 0:00:22]} 7. Bd3 {[%emt 0:00:23]} O-O {[%emt 0:00:14]} 8. Qc2 {[%emt 0:00:17]} Re8+ {[%emt 0:00:22]} 9. Ne2 {[%emt 0:00:16]} h5 {[%emt 0:02:01]} 10. O-O {[%emt 0:00:52]} h4 {[%emt 0:00:15]} 11. Nf4 {[%emt 0:01:29]} Nd7 {[%emt 0:05:12]} 12. Qd1 {[%emt 0:00:21]} Nf8 {[%emt 0:16:48]} 13. Qh5 {[%emt 0:01:04]} Bxf4 {[%emt 0:18:22]} 14. Bxf4 {[%emt 0:00:14]} h3 {[%emt 0:00:21]} 15. gxh3 {[%emt 0:01:37]} Qd5 {[%emt 0:00:39]} 16. Qxd5 {[%emt 0:03:52]} cxd5 {[%emt 0:00:02]} 17. Rfe1 {[%emt 0:02:36]} Bxh3 {[%emt 0:03:04]} 18. f3 {[%emt 0:02:06]} Bd7 {[%emt 0:03:33]} 19. Kf2 {[%emt 0:01:31]} g6 {[%emt 0:02:35]} 20. Rxe8 {[%emt 0:15:30]} Rxe8 {[%emt 0:00:16]} 21. a4 {[%emt 0:02:49]} a6 {[%emt 0:01:05]} 22. c4 {[%emt 0:14:32]} Bc6 {[%emt 0:09:42]} 23. c5 {[%emt 0:15:13]} Ne6 {[%emt 0:00:08]} 24. Be3 {[%emt 0:00:05]} f5 {[%emt 0:01:21]} 25. f4 {[%emt 0:00:05]} a5 {[%emt 0:00:54]} 26. b3 {[%emt 0:06:11]} Kg7 {[%emt 0:00:59]} 27. Bd2 {[%emt 0:01:54]} f6 {[%emt 0:05:49]} 28. Be3 {[%emt 0:02:14]} Rh8 {[%emt 0:03:11]} 29. Kg3 {[%emt 0:00:14]} Re8 {[%emt 0:01:58]} 1/2-1/2